fUST/lending_fUST_20260530
["ID","MTS","AMOUNT","RATE_DAILY","PERIOD"]
[423418025,1780096239000,-500.0,0.00011331,2]
[423418024,1780096239000,-500.0,0.00011331,2]
[423418018,1780096239000,-500.0,0.00011331,2]
[423418016,1780096239000,-333.74323169,0.00011331,2]
[423418013,1780096239000,-311.26770165,0.00011331,2]
[423418017,1780096239000,-92.39773269,0.00011331,2]
[423418034,1780096240000,-1825.08070627,0.00011332,2]
[423418033,1780096240000,-5000.0,0.00011332,2]
[423418032,1780096240000,-20253.8769916,0.00011332,2]
[423418037,1780096243000,-878.91953977,0.00011332,2]
[423418036,1780096243000,-2297.19620628,0.00011332,2]
[423418041,1780096247000,-1828.04362192,0.00011332,2]
[423418042,1780096247000,-57801.90359077,0.00011332,2]
[423418152,1780097147000,164.725547,0.00010312,120]
[423418178,1780097432000,-386.005,9.844e-05,2]
[423418189,1780097432000,-2143.43990817,9.943e-05,2]
[423418186,1780097432000,-1119.34453417,9.844e-05,2]
[423418266,1780097438000,-500.0,0.0001113,2]
[423418267,1780097438000,-500.0,0.0001113,2]
[423418270,1780097438000,-500.0,0.0001113,2]
[423418265,1780097438000,-500.0,0.0001113,2]
[423418264,1780097438000,-500.0,0.0001113,2]
[423418262,1780097438000,-500.0,0.0001113,2]
[423418261,1780097438000,-500.0,0.0001113,2]
[423418260,1780097438000,-500.0,0.0001113,2]
[423418258,1780097438000,-500.0,0.0001113,2]
[423418259,1780097438000,-500.0,0.0001113,2]
[423418257,1780097438000,-500.0,0.0001113,2]
[423418254,1780097438000,-372.3503575,0.0001113,2]
[423418256,1780097438000,-500.0,0.0001113,2]
[423418253,1780097438000,-500.0,0.0001113,2]
[423418250,1780097438000,-2159.7318134,9.943e-05,2]
[423418251,1780097438000,-164.725547,0.00010312,2]
[423418249,1780097438000,-696.82827843,9.943e-05,2]
[423418255,1780097438000,-500.0,0.0001113,2]
[423418268,1780097438000,-500.0,0.0001113,2]
[423418252,1780097438000,-300.0,0.00011129,2]
[423418269,1780097438000,-500.0,0.0001113,2]
[423418286,1780097438000,-170.56029705,0.00011131,2]
[423418288,1780097438000,-689.72589692,0.00011131,2]
[423418285,1780097438000,-500.0,0.0001113,2]
[423418283,1780097438000,-500.0,0.0001113,2]
[423418284,1780097438000,-500.0,0.0001113,2]
[423418282,1780097438000,-500.0,0.0001113,2]
[423418279,1780097438000,-500.0,0.0001113,2]
[423418281,1780097438000,-500.0,0.0001113,2]
[423418287,1780097438000,-689.72589692,0.00011131,2]
[423418280,1780097438000,-500.0,0.0001113,2]
[423418277,1780097438000,-500.0,0.0001113,2]
[423418271,1780097438000,-469.06005841,0.0001113,2]
[423418272,1780097438000,-500.0,0.0001113,2]
[423418274,1780097438000,-500.0,0.0001113,2]
[423418263,1780097438000,-500.0,0.0001113,2]
[423418273,1780097438000,-500.0,0.0001113,2]
[423418275,1780097438000,-500.0,0.0001113,2]
[423418278,1780097438000,-333.56435317,0.0001113,2]
[423418276,1780097438000,-500.0,0.0001113,2]
[423418302,1780097439000,-689.72589692,0.00011131,2]
[423418303,1780097439000,-689.72589692,0.00011131,2]
[423418300,1780097439000,-689.72589692,0.00011131,2]
[423418301,1780097439000,-689.72589692,0.00011131,2]
[423418299,1780097439000,-689.72589692,0.00011131,2]
[423418297,1780097439000,-689.72589692,0.00011131,2]
[423418298,1780097439000,-689.72589692,0.00011131,2]
[423418295,1780097439000,-689.72589692,0.00011131,2]
[423418290,1780097439000,-689.72589692,0.00011131,2]
[423418294,1780097439000,-689.72589692,0.00011131,2]
[423418289,1780097439000,-689.72589692,0.00011131,2]
[423418291,1780097439000,-689.72589692,0.00011131,2]
[423418293,1780097439000,-689.72589692,0.00011131,2]
[423418304,1780097439000,-689.72589692,0.00011131,2]
[423418296,1780097439000,-689.72589692,0.00011131,2]
[423418292,1780097439000,-689.72589692,0.00011131,2]
[423418305,1780097439000,-689.72589692,0.00011131,2]
[423418308,1780097439000,-689.72589692,0.00011131,2]
[423418321,1780097439000,-29645.73086605,0.00011132,2]
[423418320,1780097439000,-968.13929442,0.00011132,2]
[423418318,1780097439000,-744.90396869,0.00011131,2]
[423418314,1780097439000,-744.90396869,0.00011131,2]
[423418319,1780097439000,-21695.75980281,0.00011132,2]
[423418312,1780097439000,-744.90396869,0.00011131,2]
[423418315,1780097439000,-744.90396869,0.00011131,2]
[423418317,1780097439000,-744.90396869,0.00011131,2]
[423418313,1780097439000,-744.90396869,0.00011131,2]
[423418310,1780097439000,-744.90396869,0.00011131,2]
[423418311,1780097439000,-744.90396869,0.00011131,2]
[423418309,1780097439000,-744.90396869,0.00011131,2]
[423418307,1780097439000,-689.72589692,0.00011131,2]
[423418316,1780097439000,-744.90396869,0.00011131,2]
[423418306,1780097439000,-689.72589692,0.00011131,2]
[423418577,1780097444000,-1013.27128735,9.844e-05,2]
[423418587,1780097447000,-3699.31326885,9.844e-05,2]
[423418589,1780097447000,-27317.84703271,0.00011132,2]
[423418588,1780097447000,-287.4154438,9.844e-05,2]
[423418641,1780097864000,1037.5,0.0002054,120]
[423418666,1780098412000,5000.0,0.0002,120]
[423418693,1780098632000,-1308.48347,0.00010499,2]
[423418692,1780098632000,-327.0,0.00010499,2]
[423418713,1780098640000,-2999.9749059,0.00010831,2]
[423418712,1780098640000,-1308.89262777,0.00010831,2]
[423418711,1780098640000,-8585.23275545,0.00010831,2]
[423418710,1780098640000,-12093.13026166,0.000108,2]
[423418709,1780098640000,-3064.4651141,0.000108,2]
[423418706,1780098640000,-300.0,0.00010799,2]
[423418707,1780098640000,-1200.0,0.00010799,2]
[423418708,1780098640000,-265.25898572,0.000108,2]
[423418705,1780098640000,-252.292,0.00010712,2]
[423418704,1780098640000,-3364.51653,0.00010499,2]
[423418716,1780098641000,-1079.75916269,0.00010831,2]
[423418714,1780098641000,-818.56969456,0.00010831,2]
[423418715,1780098641000,-414.12432266,0.00010831,2]
[423418718,1780098641000,-7222.38778036,0.00010831,2]
[423418729,1780098643000,-15144.91822788,0.00010831,2]
[423418728,1780098643000,-720.0,0.00010831,2]
[423418737,1780098646000,-1489.92,0.00010831,2]
[423418739,1780098646000,-1026.01566809,0.00010831,2]
[423418738,1780098646000,-2222.50181288,0.00010831,2]
[423419104,1780099310000,-4707.2390746,0.0001029,2]
[423419330,1780099832000,-5758.85832704,0.000105,2]
[423419331,1780099832000,-2013.05918132,0.000105,2]
[423419329,1780099832000,-1062.0,0.00010498,2]
[423419327,1780099832000,-300.0,0.00010497,2]
[423419325,1780099832000,-170.47849172,0.00010201,2]
[423419326,1780099832000,-300.0,0.00010497,2]
[423419324,1780099832000,-5000.0,9.984e-05,2]
[423419332,1780099832000,-2246.08249164,0.000105,2]
[423419328,1780099832000,-1200.0,0.00010497,2]
[423419333,1780099832000,-166.20086744,0.00010531,2]
[423419334,1780099832000,-337.71664092,0.00010629,2]
[423419335,1780099832000,-162.28335908,0.00010629,2]
[423419345,1780099832000,-292.72715072,0.0001063,2]
[423419343,1780099832000,-222.21980571,0.0001063,2]
[423419341,1780099832000,-622.29795332,0.0001063,2]
[423419340,1780099832000,-622.29795332,0.0001063,2]
[423419344,1780099832000,-400.07814761,0.0001063,2]
[423419339,1780099832000,-341.67569816,0.00010629,2]
[423419337,1780099832000,-259.28492813,0.00010629,2]
[423419336,1780099832000,-496.56222871,0.00010629,2]
[423419338,1780099832000,-158.32430184,0.00010629,2]
[423419342,1780099832000,-622.29795332,0.0001063,2]
[423419372,1780099838000,-598.4171189,0.0001063,2]
[423419366,1780099838000,-329.5708026,0.0001063,2]
[423419367,1780099838000,-622.29795332,0.0001063,2]
[423419368,1780099838000,-622.29795332,0.0001063,2]
[423419370,1780099838000,-622.29795332,0.0001063,2]
[423419369,1780099838000,-622.29795332,0.0001063,2]
[423419371,1780099838000,-598.4171189,0.0001063,2]
[423419374,1780099838000,-598.4171189,0.0001063,2]
[423419373,1780099838000,-598.4171189,0.0001063,2]
[423419376,1780099838000,-500.0,0.0001063,2]
[423419375,1780099838000,-598.4171189,0.0001063,2]
[423419377,1780099838000,-500.0,0.0001063,2]
[423419379,1780099838000,-500.0,0.0001063,2]
[423419378,1780099838000,-500.0,0.0001063,2]
[423419380,1780099838000,-500.0,0.0001063,2]
[423419381,1780099838000,-500.0,0.0001063,2]
[423419424,1780099839000,-500.0,0.00010729,2]
[423419427,1780099839000,-500.0,0.00010729,2]
[423419426,1780099839000,-531.18,0.00010729,2]
[423419423,1780099839000,-500.0,0.00010729,2]
[423419420,1780099839000,-500.0,0.00010729,2]
[423419418,1780099839000,-500.0,0.00010729,2]
[423419419,1780099839000,-500.0,0.00010729,2]
[423419417,1780099839000,-500.0,0.00010729,2]
[423419416,1780099839000,-500.0,0.00010729,2]
[423419425,1780099839000,-500.0,0.00010729,2]
[423419413,1780099839000,-500.0,0.00010729,2]
[423419415,1780099839000,-500.0,0.00010729,2]
[423419421,1780099839000,-500.0,0.00010729,2]
[423419422,1780099839000,-500.0,0.00010729,2]
[423419429,1780099839000,-500.0,0.00010729,2]
[423419431,1780099839000,-500.0,0.00010729,2]
[423419430,1780099839000,-500.0,0.00010729,2]
[423419414,1780099839000,-500.0,0.00010729,2]
[423419433,1780099839000,-500.0,0.00010729,2]
[423419434,1780099839000,-500.0,0.00010729,2]
[423419432,1780099839000,-500.0,0.00010729,2]
[423419436,1780099839000,-500.0,0.00010729,2]
[423419438,1780099839000,-500.0,0.00010729,2]
[423419440,1780099839000,-500.0,0.00010729,2]
[423419437,1780099839000,-500.0,0.00010729,2]
[423419441,1780099839000,-648.64,0.00010729,2]
[423419435,1780099839000,-500.0,0.00010729,2]
[423419439,1780099839000,-500.0,0.00010729,2]
[423419428,1780099839000,-500.0,0.00010729,2]
[423419412,1780099839000,-500.0,0.00010728,2]
[423419388,1780099839000,-619.69,0.0001063,2]
[423419411,1780099839000,-500.0,0.00010728,2]
[423419382,1780099839000,-500.0,0.0001063,2]
[423419384,1780099839000,-500.0,0.0001063,2]
[423419383,1780099839000,-500.0,0.0001063,2]
[423419386,1780099839000,-500.0,0.0001063,2]
[423419385,1780099839000,-500.0,0.0001063,2]
[423419389,1780099839000,-500.0,0.0001063,2]
[423419387,1780099839000,-500.0,0.0001063,2]
[423419443,1780099839000,-500.0,0.00010729,2]
[423419390,1780099839000,-500.0,0.0001063,2]
[423419391,1780099839000,-500.0,0.0001063,2]
[423419393,1780099839000,-500.0,0.0001063,2]
[423419395,1780099839000,-136750.9054879,0.00010631,2]
[423419392,1780099839000,-500.0,0.0001063,2]
[423419410,1780099839000,-500.0,0.00010728,2]
[423419396,1780099839000,-500.0,0.00010728,2]
[423419398,1780099839000,-453.51650203,0.00010728,2]
[423419397,1780099839000,-164.30900787,0.00010728,2]
[423419401,1780099839000,-500.0,0.00010728,2]
[423419399,1780099839000,-500.0,0.00010728,2]
[423419400,1780099839000,-500.0,0.00010728,2]
[423419402,1780099839000,-500.0,0.00010728,2]
[423419404,1780099839000,-500.0,0.00010728,2]
[423419403,1780099839000,-500.0,0.00010728,2]
[423419405,1780099839000,-500.0,0.00010728,2]
[423419409,1780099839000,-500.0,0.00010728,2]
[423419406,1780099839000,-557.72,0.00010728,2]
[423419407,1780099839000,-500.0,0.00010728,2]
[423419408,1780099839000,-500.0,0.00010728,2]
[423419394,1780099839000,-35009.59347767,0.00010631,2]
[423419445,1780099839000,-649.71911033,0.00010729,2]
[423419442,1780099839000,-500.0,0.00010729,2]
[423419497,1780099839000,-500.0,0.00010729,2]
[423419478,1780099839000,-500.0,0.00010729,2]
[423419481,1780099839000,-500.0,0.00010729,2]
[423419480,1780099839000,-500.0,0.00010729,2]
[423419484,1780099839000,-500.0,0.00010729,2]
[423419482,1780099839000,-500.0,0.00010729,2]
[423419483,1780099839000,-500.0,0.00010729,2]
[423419486,1780099839000,-500.0,0.00010729,2]
[423419485,1780099839000,-500.0,0.00010729,2]
[423419489,1780099839000,-500.0,0.00010729,2]
[423419488,1780099839000,-500.0,0.00010729,2]
[423419490,1780099839000,-500.0,0.00010729,2]
[423419492,1780099839000,-500.0,0.00010729,2]
[423419491,1780099839000,-500.0,0.00010729,2]
[423419479,1780099839000,-1000.0,0.00010729,2]
[423419495,1780099839000,-500.0,0.00010729,2]
[423419496,1780099839000,-500.0,0.00010729,2]
[423419493,1780099839000,-500.0,0.00010729,2]
[423419446,1780099839000,-500.0,0.00010729,2]
[423419499,1780099839000,-500.0,0.00010729,2]
[423419502,1780099839000,-500.0,0.00010729,2]
[423419504,1780099839000,-500.0,0.00010729,2]
[423419501,1780099839000,-350.79005373,0.00010729,2]
[423419500,1780099839000,-500.0,0.00010729,2]
[423419498,1780099839000,-500.0,0.00010729,2]
[423419503,1780099839000,-500.0,0.00010729,2]
[423419506,1780099839000,-500.0,0.00010729,2]
[423419505,1780099839000,-500.0,0.00010729,2]
[423419507,1780099839000,-500.0,0.00010729,2]
[423419494,1780099839000,-500.0,0.00010729,2]
[423419477,1780099839000,-500.0,0.00010729,2]
[423419487,1780099839000,-500.0,0.00010729,2]
[423419475,1780099839000,-500.0,0.00010729,2]
[423419444,1780099839000,-500.0,0.00010729,2]
[423419447,1780099839000,-500.0,0.00010729,2]
[423419448,1780099839000,-500.0,0.00010729,2]
[423419449,1780099839000,-500.0,0.00010729,2]
[423419450,1780099839000,-500.0,0.00010729,2]
[423419473,1780099839000,-500.0,0.00010729,2]
[423419452,1780099839000,-500.0,0.00010729,2]
[423419453,1780099839000,-500.0,0.00010729,2]
[423419454,1780099839000,-500.0,0.00010729,2]
[423419456,1780099839000,-500.0,0.00010729,2]
[423419455,1780099839000,-500.0,0.00010729,2]
[423419457,1780099839000,-500.0,0.00010729,2]
[423419458,1780099839000,-500.0,0.00010729,2]
[423419460,1780099839000,-500.0,0.00010729,2]
[423419459,1780099839000,-314.714,0.00010729,2]
[423419451,1780099839000,-501.90953744,0.00010729,2]
[423419461,1780099839000,-500.0,0.00010729,2]
[423419462,1780099839000,-500.0,0.00010729,2]
[423419476,1780099839000,-500.0,0.00010729,2]
[423419474,1780099839000,-500.0,0.00010729,2]
[423419471,1780099839000,-500.0,0.00010729,2]
[423419470,1780099839000,-500.0,0.00010729,2]
[423419469,1780099839000,-500.0,0.00010729,2]
[423419472,1780099839000,-500.0,0.00010729,2]
[423419466,1780099839000,-500.0,0.00010729,2]
[423419467,1780099839000,-500.0,0.00010729,2]
[423419464,1780099839000,-500.0,0.00010729,2]
[423419463,1780099839000,-500.0,0.00010729,2]
[423419465,1780099839000,-500.0,0.00010729,2]
[423419468,1780099839000,-500.0,0.00010729,2]
[423419531,1780099840000,-500.0,0.00010729,2]
[423419540,1780099840000,-500.0,0.00010729,2]
[423419532,1780099840000,-500.0,0.00010729,2]
[423419535,1780099840000,-500.0,0.00010729,2]
[423419536,1780099840000,-500.0,0.00010729,2]
[423419534,1780099840000,-500.0,0.00010729,2]
[423419538,1780099840000,-500.0,0.00010729,2]
[423419539,1780099840000,-500.61446561,0.00010729,2]
[423419537,1780099840000,-507.33168212,0.00010729,2]
[423419546,1780099840000,-500.0,0.00010729,2]
[423419543,1780099840000,-500.0,0.00010729,2]
[423419544,1780099840000,-500.0,0.00010729,2]
[423419542,1780099840000,-500.17397271,0.00010729,2]
[423419547,1780099840000,-500.4372812,0.00010729,2]
[423419545,1780099840000,-500.14661618,0.00010729,2]
[423419549,1780099840000,-500.13859997,0.00010729,2]
[423419548,1780099840000,-500.0,0.00010729,2]
[423419529,1780099840000,-500.0,0.00010729,2]
[423419541,1780099840000,-500.0,0.00010729,2]
[423419533,1780099840000,-500.0,0.00010729,2]
[423419553,1780099840000,-595.81718934,0.00010729,2]
[423419527,1780099840000,-500.0,0.00010729,2]
[423419510,1780099840000,-500.0,0.00010729,2]
[423419512,1780099840000,-500.0,0.00010729,2]
[423419508,1780099840000,-500.0,0.00010729,2]
[423419511,1780099840000,-500.0,0.00010729,2]
[423419513,1780099840000,-500.0,0.00010729,2]
[423419514,1780099840000,-500.0,0.00010729,2]
[423419516,1780099840000,-500.0,0.00010729,2]
[423419517,1780099840000,-500.0,0.00010729,2]
[423419519,1780099840000,-500.0,0.00010729,2]
[423419518,1780099840000,-500.0,0.00010729,2]
[423419515,1780099840000,-500.0,0.00010729,2]
[423419521,1780099840000,-500.0,0.00010729,2]
[423419520,1780099840000,-500.0,0.00010729,2]
[423419522,1780099840000,-500.0,0.00010729,2]
[423419523,1780099840000,-500.0,0.00010729,2]
[423419525,1780099840000,-500.0,0.00010729,2]
[423419526,1780099840000,-500.0,0.00010729,2]
[423419524,1780099840000,-500.0,0.00010729,2]
[423419528,1780099840000,-500.0,0.00010729,2]
[423419530,1780099840000,-500.0,0.00010729,2]
[423419554,1780099840000,-595.81718934,0.00010729,2]
[423419591,1780099840000,-500.0,0.00010799,2]
[423419552,1780099840000,-595.81718934,0.00010729,2]
[423419576,1780099840000,-500.0,0.0001073,2]
[423419577,1780099840000,-500.0,0.0001073,2]
[423419580,1780099840000,-2292.9847,0.0001073,2]
[423419581,1780099840000,-500.0,0.00010797,2]
[423419584,1780099840000,-500.0,0.00010799,2]
[423419579,1780099840000,-500.0,0.0001073,2]
[423419583,1780099840000,-500.0,0.00010799,2]
[423419586,1780099840000,-500.0,0.00010799,2]
[423419578,1780099840000,-500.0,0.0001073,2]
[423419585,1780099840000,-500.0,0.00010799,2]
[423419589,1780099840000,-500.0,0.00010799,2]
[423419587,1780099840000,-500.0,0.00010799,2]
[423419595,1780099840000,-26464.69829635,0.00010886,2]
[423419590,1780099840000,-500.0,0.00010799,2]
[423419593,1780099840000,-190.7779368,0.00010861,2]
[423419592,1780099840000,-500.0,0.00010799,2]
[423419594,1780099840000,-1178.7360549,0.00010861,2]
[423419551,1780099840000,-595.81718934,0.00010729,2]
[423419588,1780099840000,-500.0,0.00010799,2]
[423419573,1780099840000,-500.0,0.0001073,2]
[423419582,1780099840000,-500.0,0.00010799,2]
[423419574,1780099840000,-500.0,0.0001073,2]
[423419550,1780099840000,-500.0,0.00010729,2]
[423419556,1780099840000,-595.81718934,0.00010729,2]
[423419555,1780099840000,-595.81718934,0.00010729,2]
[423419575,1780099840000,-204.11397081,0.0001073,2]
[423419559,1780099840000,-500.0,0.00010729,2]
[423419560,1780099840000,-500.0,0.0001073,2]
[423419558,1780099840000,-595.81718934,0.00010729,2]
[423419561,1780099840000,-500.0,0.0001073,2]
[423419563,1780099840000,-500.0,0.0001073,2]
[423419565,1780099840000,-500.0,0.0001073,2]
[423419557,1780099840000,-595.81718934,0.00010729,2]
[423419568,1780099840000,-471.4065991,0.0001073,2]
[423419562,1780099840000,-500.0,0.0001073,2]
[423419564,1780099840000,-500.0,0.0001073,2]
[423419567,1780099840000,-534.06988833,0.0001073,2]
[423419569,1780099840000,-500.0,0.0001073,2]
[423419570,1780099840000,-500.0,0.0001073,2]
[423419571,1780099840000,-500.0,0.0001073,2]
[423419572,1780099840000,-500.0,0.0001073,2]
[423419566,1780099840000,-500.0,0.0001073,2]
[423419745,1780099846000,-500.0,0.00010904,2]
[423419744,1780099846000,-409.60272286,0.00010904,2]
[423419743,1780099846000,-90.39727714,0.00010904,2]
[423419742,1780099846000,-475.96526198,0.00010904,2]
[423419739,1780099846000,-3073.2984708,0.00010886,2]
[423419741,1780099846000,-24.03473802,0.00010904,2]
[423419736,1780099846000,-777.15477584,0.00010886,2]
[423419738,1780099846000,-176.670643,0.00010886,2]
[423419737,1780099846000,-27949.00032631,0.00010886,2]
[423419734,1780099846000,-297.64,0.0001063,2]
[423419735,1780099846000,-851.30069169,0.00010777,2]
[423419746,1780099846000,-500.0,0.00010904,2]
[423419740,1780099846000,-500.0,0.00010904,2]
[423419757,1780099846000,-500.0,0.00010904,2]
[423419761,1780099846000,-500.0,0.0001093,2]
[423419750,1780099846000,-500.0,0.00010904,2]
[423419748,1780099846000,-346.75,0.00010904,2]
[423419767,1780099846000,-633.36902697,0.0001093,2]
[423419764,1780099846000,-500.0,0.0001093,2]
[423419765,1780099846000,-500.0,0.0001093,2]
[423419763,1780099846000,-500.0,0.0001093,2]
[423419759,1780099846000,-500.0,0.0001093,2]
[423419760,1780099846000,-502.56285709,0.0001093,2]
[423419766,1780099846000,-500.0,0.0001093,2]
[423419758,1780099846000,-500.0,0.00010904,2]
[423419754,1780099846000,-500.0,0.00010904,2]
[423419755,1780099846000,-500.0,0.00010904,2]
[423419756,1780099846000,-500.0,0.00010904,2]
[423419762,1780099846000,-500.0,0.0001093,2]
[423419752,1780099846000,-619.52,0.00010904,2]
[423419793,1780099847000,-500.0,0.00011002,2]
[423419784,1780099847000,-500.0,0.0001093,2]
[423419785,1780099847000,-500.0,0.0001093,2]
[423419787,1780099847000,-500.0,0.0001093,2]
[423419786,1780099847000,-500.0,0.0001093,2]
[423419788,1780099847000,-500.0,0.00010958,2]
[423419789,1780099847000,-500.0,0.00011002,2]
[423419791,1780099847000,-500.0,0.00011002,2]
[423419795,1780099847000,-500.0,0.00011002,2]
[423419792,1780099847000,-500.0,0.00011002,2]
[423419780,1780099847000,-500.0,0.0001093,2]
[423419790,1780099847000,-500.0,0.00011002,2]
[423419782,1780099847000,-500.0,0.0001093,2]
[423419772,1780099847000,-500.0,0.0001093,2]
[423419778,1780099847000,-500.0,0.0001093,2]
[423419779,1780099847000,-500.0,0.0001093,2]
[423419777,1780099847000,-500.0,0.0001093,2]
[423419783,1780099847000,-500.0,0.0001093,2]
[423419775,1780099847000,-500.0,0.0001093,2]
[423419776,1780099847000,-500.0,0.0001093,2]
[423419774,1780099847000,-214.02030934,0.0001093,2]
[423419773,1780099847000,-500.0,0.0001093,2]
[423419771,1780099847000,-500.0,0.0001093,2]
[423419769,1780099847000,-500.0,0.0001093,2]
[423419768,1780099847000,-500.0,0.0001093,2]
[423419770,1780099847000,-500.0,0.0001093,2]
[423419794,1780099847000,-500.0,0.00011002,2]
[423419781,1780099847000,-500.0,0.0001093,2]
[423419798,1780099847000,-500.0,0.00011003,2]
[423419802,1780099847000,-588.86,0.00011003,2]
[423419797,1780099847000,-213.25,0.00011002,2]
[423419799,1780099847000,-500.0,0.00011003,2]
[423419827,1780099847000,-141.65608911,0.00011003,2]
[423419826,1780099847000,-500.0,0.00011003,2]
[423419825,1780099847000,-500.0,0.00011003,2]
[423419824,1780099847000,-500.0,0.00011003,2]
[423419822,1780099847000,-500.0,0.00011003,2]
[423419820,1780099847000,-500.0,0.00011003,2]
[423419817,1780099847000,-500.0,0.00011003,2]
[423419818,1780099847000,-500.0,0.00011003,2]
[423419821,1780099847000,-630.93610363,0.00011003,2]
[423419819,1780099847000,-500.0,0.00011003,2]
[423419816,1780099847000,-168.61742672,0.00011003,2]
[423419814,1780099847000,-439.69892671,0.00011003,2]
[423419815,1780099847000,-500.0,0.00011003,2]
[423419823,1780099847000,-500.0,0.00011003,2]
[423419813,1780099847000,-60.30107329,0.00011003,2]
[423419812,1780099847000,-500.0,0.00011003,2]
[423419800,1780099847000,-583.63,0.00011003,2]
[423419803,1780099847000,-500.0,0.00011003,2]
[423419804,1780099847000,-500.0,0.00011003,2]
[423419805,1780099847000,-500.0,0.00011003,2]
[423419801,1780099847000,-500.0,0.00011003,2]
[423419796,1780099847000,-500.0,0.00011002,2]
[423419808,1780099847000,-500.0,0.00011003,2]
[423419807,1780099847000,-500.0,0.00011003,2]
[423419809,1780099847000,-500.0,0.00011003,2]
[423419811,1780099847000,-500.0,0.00011003,2]
[423419806,1780099847000,-500.0,0.00011003,2]
[423419810,1780099847000,-500.0,0.00011003,2]
[423419939,1780101039000,-500.0,0.00010528,2]
[423419943,1780101039000,-500.0,0.00010529,2]
[423419944,1780101039000,-374.63,0.00010529,2]
[423419940,1780101039000,-368.5143566,0.00010528,2]
[423419934,1780101039000,-500.0,0.00010528,2]
[423419933,1780101039000,-500.0,0.00010528,2]
[423419942,1780101039000,-556.29810192,0.00010528,2]
[423419936,1780101039000,-500.0,0.00010528,2]
[423419935,1780101039000,-500.0,0.00010528,2]
[423419941,1780101039000,-500.0,0.00010528,2]
[423419938,1780101039000,-500.0,0.00010528,2]
[423419949,1780101039000,-500.0,0.00010529,2]
[423419946,1780101039000,-500.0,0.00010529,2]
[423419948,1780101039000,-2292.9847,0.00010529,2]
[423419958,1780101039000,-500.0,0.0001053,2]
[423419945,1780101039000,-500.0,0.00010529,2]
[423419950,1780101039000,-336.49,0.00010529,2]
[423419947,1780101039000,-203.52,0.00010529,2]
[423419957,1780101039000,-500.0,0.0001053,2]
[423419956,1780101039000,-500.0,0.0001053,2]
[423419953,1780101039000,-500.0,0.00010529,2]
[423419955,1780101039000,-500.0,0.00010529,2]
[423419932,1780101039000,-500.0,0.00010528,2]
[423419954,1780101039000,-500.0,0.00010529,2]
[423419937,1780101039000,-500.0,0.00010528,2]
[423419931,1780101039000,-500.0,0.00010528,2]
[423419918,1780101039000,-500.0,0.00010528,2]
[423419928,1780101039000,-500.0,0.00010528,2]
[423419951,1780101039000,-500.0,0.00010529,2]
[423419904,1780101039000,-167.06892189,0.00010053,2]
[423419903,1780101039000,-851.30069169,9.914e-05,2]
[423419906,1780101039000,-1200.0,0.00010527,2]
[423419909,1780101039000,-500.0,0.00010528,2]
[423419905,1780101039000,-300.0,0.00010527,2]
[423419908,1780101039000,-500.0,0.00010528,2]
[423419907,1780101039000,-167.88,0.00010528,2]
[423419911,1780101039000,-500.0,0.00010528,2]
[423419921,1780101039000,-484.66,0.00010528,2]
[423419922,1780101039000,-500.0,0.00010528,2]
[423419910,1780101039000,-297.64,0.00010528,2]
[423419930,1780101039000,-500.0,0.00010528,2]